bitfinex/quotes_ETHUSD_20240817
["timestamp","ask_amount","ask_price","bid_price","bid_amount"]
[1723888074970,2.94687134,2603.9,2603.5,2.88065]
[1723888075374,2.94687134,2603.9,2603.6,3.43051]
[1723888075375,1.2042343,2603.9,2603.6,3.43051]
[1723888078515,1.2042343,2603.9,2603.4,6.69506]
[1723888078716,1.2042343,2603.9,2603.5,0.55]
[1723888078942,2.94687334,2603.9,2603.5,0.55]
[1723888079442,2.94687334,2603.9,2603.5,3.43071]
[1723888079646,2.94687334,2603.9,2603.6,2.88062]
[1723888080141,1.74263904,2603.9,2603.6,2.88062]
[1723888080359,1.2042343,2604.0,2603.7,2.88044]
[1723888080511,10.9304343,2604.1,2603.7,2.88044]
[1723888080869,8.6342343,2604.1,2603.8,2.88033]
[1723888081011,8.6342343,2604.1,2603.9,2.88028]
[1723888081012,7.43,2604.1,2603.9,2.88028]
[1723888081210,7.43,2604.1,2604.0,2.88018]
[1723888081419,13.91564574,2604.4,2604.1,2.87997]
[1723888081420,1.2042343,2604.4,2604.1,2.87997]
[1723888081628,7.43,2604.5,2604.1,2.87997]
[1723888081866,7.43,2604.5,2604.2,0.55]
[1723888082007,7.43,2604.5,2604.2,3.42986]
[1723888082443,7.43,2604.5,2604.2,4.75786]
[1723888082964,7.43,2604.5,2604.4,1.328]
[1723888083449,7.43,2604.5,2604.3,2.87977]
[1723888083758,9.71272226,2604.5,2604.2,1.878]
[1723888084074,9.71272226,2604.5,2604.2,3.42994]
[1723888084223,7.43,2604.5,2604.2,3.42994]
[1723888084425,7.43,2604.5,2604.3,2.87984]
[1723888084734,7.43,2604.5,2604.4,2.87974]
[1723888085329,15.39722264,2604.7,2604.5,2.87958]
[1723888085645,7.43,2605.0,2604.5,2.87958]
[1723888085823,8.85107357,2605.0,2604.5,2.87958]
[1723888086348,12.93439787,2605.0,2604.4,0.55]
[1723888086711,8.85107357,2605.0,2604.4,3.42964]
[1723888087045,8.85107357,2605.0,2604.5,3.42961]
[1723888088051,1.42107357,2605.0,2604.6,2.8795]
[1723888088207,8.6342343,2605.3,2604.6,2.4863]
[1723888088408,7.43,2605.3,2604.7,2.87939]
[1723888088622,2.92063369,2605.2,2604.7,2.87939]
[1723888090314,7.43,2605.3,2604.8,0.55]
[1723888090529,7.43,2605.3,2604.9,2.87908]
[1723888090854,15.39722264,2605.4,2605.1,2.87894]
[1723888091171,19.1405649,2605.4,2604.9,2.87908]
[1723888091332,19.1405649,2605.4,2605.0,0.55]
[1723888091653,19.1405649,2605.4,2604.7,2.87935]
[1723888091857,1.91405649,2605.3,2604.7,2.87935]
[1723888092590,5.17496,2605.2,2604.5,2.87955]
[1723888092898,5.17496,2605.2,2604.6,0.55]
[1723888093191,0.70890165,2605.1,2604.6,0.55]
[1723888094389,0.70890165,2605.1,2604.3,8.1655]
[1723888094688,2.87915,2605.0,2604.4,0.55]
[1723888095060,0.70890165,2605.1,2604.4,0.55]
[1723888095282,0.70890165,2605.1,2604.5,2.87962]
[1723888095489,0.58838917,2605.0,2604.5,2.87962]
[1723888096198,17.31127913,2605.3,2604.9,2.87911]
[1723888096199,15.39722264,2605.3,2604.9,2.87911]
[1723888096377,15.39722264,2605.3,2605.0,2.87905]
[1723888096578,15.39722264,2605.3,2605.0,2.2857]
[1723888097700,16.9369449,2605.3,2604.9,2.87911]
[1723888098091,16.9369449,2605.3,2604.7,2.87929]
[1723888098266,16.9369449,2605.3,2604.8,0.55]
[1723888098466,2.21116749,2605.2,2604.8,3.42927]
[1723888098699,15.39722264,2605.3,2604.8,3.42927]
[1723888099841,15.39722264,2605.3,2604.8,0.55]
[1723888100111,18.27598264,2605.3,2604.6,2.87951]
[1723888100313,2.05720826,2605.2,2604.6,2.87951]
[1723888100907,4.93607826,2605.2,2604.6,2.87951]
[1723888101282,2.05720826,2605.2,2604.6,2.87951]
[1723888101870,2.05720826,2605.2,2604.7,2.8794]
[1723888103900,2.05720826,2605.2,2604.6,2.87951]
[1723888104211,2.05720826,2605.2,2604.7,2.8794]
[1723888105878,2.05720826,2605.2,2604.6,2.87943]
[1723888106081,0.60146351,2605.1,2604.6,2.87943]
[1723888106282,0.60146351,2605.1,2604.6,5.75887]
[1723888106517,2.05720826,2605.2,2604.6,2.87943]
[1723888107091,15.39722264,2605.3,2604.6,2.87943]
[1723888107418,15.39722264,2605.3,2604.8,2.87922]
[1723888110198,2.4968,2605.2,2604.8,2.87922]
[1723888112138,2.4968,2605.2,2604.5,2.87962]
[1723888112352,1.78940226,2605.1,2604.4,2.87968]
[1723888112544,1.78940226,2605.1,2604.5,0.55]
[1723888113125,4.66841226,2605.1,2604.5,0.55]
[1723888113344,1.00441323,2605.0,2604.5,0.55]
[1723888114051,3.88351323,2605.0,2604.5,0.55]
[1723888114356,3.88351323,2605.0,2604.4,2.87965]
[1723888116053,3.88351323,2605.0,2604.4,4.20665]
[1723888116423,2.325,2604.9,2604.4,4.20665]
[1723888117335,2.325,2604.9,2604.5,2.87961]
[1723888117528,4.11440226,2605.1,2604.5,2.87961]
[1723888118332,6.99338226,2605.1,2604.5,2.87961]
[1723888119143,7.10551889,2605.0,2604.4,2.87965]
[1723888120165,2.325,2604.5,2603.8,5.14633]
[1723888120470,2.325,2604.5,2602.1,7.46]
[1723888120471,2.325,2604.1,2603.5,2.88072]
[1723888121241,2.325,2604.1,2603.6,4.20757]
[1723888121441,2.325,2604.4,2603.8,4.20737]
[1723888121883,2.325,2604.4,2603.8,5.14637]
[1723888122086,1.20509183,2604.5,2603.8,5.14637]
[1723888122087,1.20509183,2604.5,2603.9,2.88027]
[1723888122289,1.20509183,2604.4,2603.9,2.88027]
[1723888123634,4.25780083,2604.5,2603.9,2.88027]
[1723888124160,1.20509183,2604.4,2603.9,2.88027]
[1723888124878,1.20509183,2604.4,2603.8,5.14637]
[1723888125114,1.20509183,2604.4,2603.9,3.43029]
[1723888125238,1.20509183,2604.4,2604.0,2.88017]
[1723888125438,1.20509183,2604.6,2604.2,5.14594]
[1723888125641,8.63509183,2604.7,2604.2,5.14594]
[1723888125948,8.63317233,2604.7,2604.2,5.14594]
[1723888126934,8.63317233,2604.7,2604.4,2.87965]
[1723888127144,1.20509183,2604.9,2604.6,5.14543]
[1723888127402,1.20509183,2604.9,2604.7,0.55]
[1723888127535,1.60678911,2605.0,2604.7,0.55]
[1723888127536,1.20509183,2605.0,2604.7,0.55]
[1723888127975,1.20509183,2605.1,2604.7,0.55]
[1723888128185,1.20509183,2605.0,2604.7,0.55]
[1723888129345,1.20509183,2605.0,2604.4,5.14564]
[1723888129346,1.20509183,2604.9,2604.4,5.14564]
[1723888129545,1.20509183,2604.9,2604.5,0.55]
[1723888130336,1.20509183,2604.9,2604.6,2.87951]
[1723888130534,1.20509183,2604.9,2604.7,0.55]
[1723888133379,1.20509183,2604.9,2604.4,5.14571]
[1723888133585,1.48627992,2604.9,2604.5,0.55]
[1723888133786,1.20509183,2604.8,2604.5,0.55]
[1723888134083,1.20509183,2604.8,2604.4,0.55]
[1723888134972,1.20509183,2604.8,2604.4,3.42973]
[1723888135289,1.20509183,2604.9,2604.4,3.42973]
[1723888137343,1.20509183,2604.9,2604.5,2.87962]
[1723888137547,1.20509183,2604.9,2604.7,2.87938]
[1723888137857,1.20509183,2605.0,2604.7,2.87938]
[1723888140487,1.20509183,2605.1,2604.7,2.87938]
[1723888141345,1.20509183,2605.0,2604.7,2.87938]
[1723888142084,1.20509183,2605.0,2604.6,2.3089]
[1723888142395,1.20509183,2604.9,2604.7,0.55]
[1723888142762,1.20509183,2604.9,2604.6,0.55]
[1723888143195,1.20509183,2604.9,2604.5,2.87962]
[1723888143349,1.60678911,2605.0,2604.7,2.87939]
[1723888143350,1.20509183,2605.0,2604.7,2.87939]
[1723888143691,1.20509183,2605.0,2604.8,0.55]
[1723888143895,1.20509183,2604.9,2604.8,0.55]
[1723888144579,1.20509183,2605.0,2604.8,0.55]
[1723888145584,1.20509183,2605.0,2604.8,3.42927]
[1723888145787,1.20509183,2605.1,2604.8,0.55]
[1723888146952,1.20509183,2605.0,2604.8,0.55]
[1723888148287,1.20509183,2605.0,2604.5,2.87954]
[1723888148490,1.20509183,2605.0,2604.6,0.55]
[1723888149256,1.20509183,2605.0,2604.6,3.4295]
[1723888150492,1.20509183,2605.0,2604.6,0.55]
[1723888151895,1.20509183,2605.0,2604.6,1.876]
[1723888152675,1.20509183,2605.0,2604.7,2.3517]
[1723888153072,1.20509183,2605.0,2604.7,5.2311]
[1723888153384,1.20509183,2605.0,2604.8,0.55]
[1723888153593,1.20509183,2605.1,2604.8,0.55]
[1723888154496,1.20509183,2605.1,2604.8,4.7552]
[1723888155616,1.20509183,2605.1,2604.8,1.876]
[1723888155916,1.20509183,2605.0,2604.8,0.55]
[1723888156224,1.60678911,2605.1,2604.8,0.55]
[1723888156225,1.20509183,2605.1,2604.8,0.55]
[1723888156512,1.20509183,2605.0,2604.8,0.55]
[1723888157007,1.20509183,2605.1,2604.8,0.55]
[1723888157184,1.20509183,2605.1,2604.8,3.42921]
[1723888158086,1.20509183,2605.0,2604.8,0.55]
[1723888158586,1.20509183,2605.1,2604.8,0.55]
[1723888158789,1.20509183,2605.0,2604.8,0.55]
[1723888159516,1.20509183,2605.1,2604.8,0.55]
[1723888160517,1.20509183,2605.0,2604.8,0.55]
[1723888161278,1.85497208,2605.1,2604.8,0.55]
[1723888161476,1.20509183,2605.0,2604.8,0.55]
[1723888162694,3.45659183,2605.0,2604.8,0.55]
[1723888162879,4.80502985,2605.0,2604.7,0.55]
[1723888163082,1.20509183,2604.9,2604.7,0.55]
[1723888163400,1.20509183,2604.9,2604.6,0.55]
[1723888163600,4.08435183,2604.9,2604.4,2.4416]
[1723888163922,0.72755781,2604.9,2604.4,3.7676]
[1723888164120,4.08423183,2605.0,2604.4,3.7676]
[1723888164281,4.08423183,2605.0,2604.4,6.64729]
[1723888164618,4.08423183,2605.0,2604.4,9.52698]
[1723888164807,4.08423183,2605.0,2604.4,6.64729]
[1723888165003,4.08423183,2605.0,2604.5,0.55]
[1723888167324,5.16637392,2605.0,2604.5,0.55]
[1723888167661,1.20509183,2604.9,2604.5,0.55]
[1723888168029,4.08435183,2604.9,2604.5,0.55]
[1723888168472,1.20509183,2604.8,2604.5,0.55]
[1723888168832,1.20509183,2604.9,2604.5,0.55]
[1723888169532,1.20509183,2604.8,2604.5,0.55]
[1723888170744,1.20509183,2604.7,2604.5,0.55]
[1723888172686,1.20509183,2604.8,2604.5,3.42962]
[1723888173591,1.20509183,2604.8,2604.5,0.55]
[1723888174286,1.20509183,2604.7,2604.5,0.55]
[1723888176258,1.20509183,2604.6,2604.5,0.55]
[1723888176582,1.68797948,2604.6,2604.3,0.55]
[1723888176786,1.68797948,2604.6,2604.1,1.326]
[1723888176787,1.60678911,2604.4,2604.0,5.2353]
[1723888176989,2.01699558,2604.5,2604.0,5.2353]
[1723888176990,1.21041034,2604.3,2604.1,2.88005]
[1723888177193,1.21041034,2604.2,2604.1,2.88005]
[1723888177681,1.21041034,2604.2,2604.0,2.3552]
[1723888177682,1.21041034,2604.2,2604.0,5.23531]
[1723888177888,1.21041034,2604.3,2604.1,0.55]
[1723888178085,1.21041034,2604.3,2604.1,3.43006]
[1723888178287,1.21041034,2604.4,2604.3,2.87985]
[1723888178590,1.60678911,2604.5,2604.4,2.87974]
[1723888178591,1.21041034,2604.5,2604.4,2.87974]
[1723888178789,1.21041034,2604.6,2604.4,2.3552]
[1723888179289,1.21041034,2604.6,2604.5,0.55]
[1723888183100,1.20976106,2604.6,2604.5,0.55]
[1723888183255,1.60678911,2604.7,2604.5,0.55]
[1723888183461,1.20977952,2604.6,2604.5,0.55]
[1723888184593,1.20977952,2604.7,2604.5,0.55]
[1723888184998,1.20977952,2604.6,2604.5,0.55]
[1723888185202,1.20977952,2604.7,2604.5,0.55]
[1723888186102,1.20977952,2604.6,2604.5,0.55]
[1723888187506,1.20977952,2604.7,2604.5,0.55]
[1723888187874,1.20977952,2604.6,2604.5,0.55]
[1723888188504,0.81656863,2604.8,2604.5,0.55]
[1723888188808,0.57117749,2604.8,2604.5,0.55]
[1723888189109,2.0161263,2604.9,2604.5,0.55]
[1723888191113,2.2762,2604.8,2604.5,0.55]
[1723888191318,4.2923263,2604.8,2604.4,0.55]
[1723888191487,2.2762,2604.8,2604.4,0.55]
[1723888191820,4.8953263,2604.9,2604.4,0.55]
[1723888193009,2.8792,2604.9,2604.4,0.55]
[1723888193215,6.29666677,2604.9,2604.4,0.55]
[1723888194017,2.01600898,2604.8,2604.4,0.55]
[1723888196602,1.61268422,2604.7,2604.4,0.55]
[1723888199318,1.61268422,2604.8,2604.4,0.55]
[1723888199520,1.61268422,2604.8,2604.5,2.4147]
[1723888199734,1.61268422,2604.8,2604.6,0.55]
[1723888201036,1.61268422,2604.7,2604.6,0.55]
[1723888201335,11.20822811,2604.7,2604.1,5.29472]
[1723888201538,1.61252229,2604.5,2604.1,5.29472]
[1723888201890,1.61252229,2604.6,2604.1,5.29472]
[1723888202126,1.61252229,2604.6,2604.1,6.62072]
[1723888202310,4.49204229,2604.6,2604.1,6.62072]
[1723888202512,1.61252229,2604.5,2604.1,6.62072]
[1723888202713,1.61252229,2604.5,2604.2,0.55]
[1723888203113,1.61252229,2604.6,2604.2,0.55]
[1723888203717,1.61252229,2604.5,2604.2,0.55]
[1723888203911,1.61252229,2604.6,2604.2,0.55]
[1723888204110,1.61252229,2604.6,2604.3,3.7407]
[1723888204452,1.61252229,2604.7,2604.3,3.7407]
[1723888204593,1.61252229,2604.7,2604.3,2.4147]
[1723888204797,1.61252229,2604.7,2604.3,5.29454]
[1723888205305,1.61252229,2604.7,2604.3,6.62048]
[1723888205510,1.61252229,2604.7,2604.4,0.55]
[1723888205707,1.61252229,2604.7,2604.4,3.42973]
[1723888206798,1.61252229,2604.7,2604.4,0.55]
[1723888207003,1.61252229,2604.6,2604.4,0.55]
[1723888207199,1.61252229,2604.5,2604.2,0.55]
[1723888207604,1.61252229,2604.6,2604.2,0.55]
[1723888208005,1.61252229,2604.5,2604.2,0.55]
[1723888208443,4.51092556,2604.5,2604.2,0.55]
[1723888208612,1.61252229,2604.4,2604.1,0.55]
[1723888209503,4.51092556,2604.5,2604.1,0.55]
[1723888209729,1.61252229,2604.5,2604.1,0.55]
[1723888210045,2.4949,2604.4,2603.8,2.4147]
[1723888210342,2.31123552,2604.3,2603.8,2.4147]
[1723888211413,1.61252229,2604.3,2603.8,3.7407]
[1723888211750,1.61252229,2604.5,2603.9,3.43028]
[1723888211947,1.61252229,2604.4,2603.9,3.43028]
[1723888212304,1.61252229,2604.5,2603.9,3.43028]
[1723888212507,1.61252229,2604.4,2603.9,3.43028]
[1723888214320,1.61252229,2604.4,2604.0,2.88015]
[1723888214530,1.61252229,2604.5,2604.2,2.3748]
[1723888215956,2.01533556,2604.6,2604.2,2.3748]
[1723888215957,1.61252229,2604.6,2604.2,2.3748]
[1723888216303,1.61252229,2604.5,2604.2,2.3748]
[1723888217313,1.61252229,2604.5,2604.0,2.8801]
[1723888217514,1.61252229,2604.5,2604.1,0.55]
[1723888220575,4.49216229,2604.5,2604.1,0.55]
[1723888220736,2.33123743,2604.4,2604.1,0.55]
[1723888221867,4.49246229,2604.3,2603.7,2.3748]
[1723888222077,0.85499177,2604.2,2603.8,0.55]
[1723888224840,0.85499177,2604.2,2603.8,3.43037]
[1723888225139,4.49227229,2604.4,2603.9,2.3748]
[1723888225959,4.49227229,2604.4,2603.8,3.43037]
[1723888226156,0.93843233,2604.3,2603.8,3.43037]
[1723888226357,2.55095462,2604.3,2603.8,3.43037]
[1723888227739,0.93843233,2604.3,2603.8,3.43037]
[1723888227967,4.49227229,2604.4,2603.8,3.43037]
[1723888230089,1.61252229,2604.3,2603.8,3.43037]
[1723888231587,2.4466,2604.2,2603.8,3.43037]
[1723888237095,1.61252229,2604.3,2603.8,3.43037]
[1723888237255,1.61252229,2604.3,2603.8,5.72587]
[1723888237761,2.59437352,2604.3,2603.8,3.43037]
[1723888237964,4.49269229,2604.1,2603.5,3.0]
[1723888238165,3.32945923,2604.0,2603.6,0.55]
[1723888238349,3.32945923,2604.0,2603.5,0.55]
[1723888238350,2.06179152,2604.0,2603.5,0.55]
[1723888239658,2.4466,2603.9,2603.5,0.55]
[1723888239857,6.55505121,2603.9,2603.5,0.55]
[1723888240053,6.55505121,2603.9,2603.2,11.05754]
[1723888240054,8.1675735,2603.9,2603.3,0.55]
[1723888240265,8.1675735,2603.9,2603.3,3.43091]
[1723888240668,0.99428427,2603.8,2603.2,5.17652]
[1723888240867,0.99428427,2603.8,2603.2,2.88102]
[1723888241074,2.60680656,2603.8,2603.2,2.88102]
[1723888241270,0.99428427,2603.8,2603.2,2.88102]
[1723888241966,0.99428427,2603.8,2603.2,4.20699]
[1723888242166,6.93943229,2603.9,2603.2,4.20699]
[1723888242167,5.32691,2603.9,2603.2,4.20699]
[1723888242987,5.32691,2603.9,2603.3,3.43091]
[1723888244023,5.32691,2603.9,2603.3,0.55]
[1723888244431,6.93943229,2603.9,2603.3,0.55]
[1723888244619,0.82654323,2603.8,2603.3,0.55]
[1723888246838,2.4466,2603.7,2603.3,0.55]
[1723888252644,2.4466,2603.7,2603.3,3.43093]
[1723888254611,2.4466,2603.7,2603.3,0.55]
[1723888254808,2.4466,2603.7,2603.2,4.20698]
[1723888254809,2.4466,2603.7,2603.0,5.2949]
[1723888255147,2.4466,2603.7,2602.9,3.0]
[1723888255148,2.3478,2603.4,2602.9,5.88139]
[1723888257306,2.3478,2603.4,2602.9,3.0]
[1723888257518,2.3478,2603.4,2602.8,2.88142]
[1723888257720,2.3478,2603.4,2602.9,0.55]
[1723888257925,3.18897223,2603.4,2602.9,0.55]
[1723888258133,2.3478,2603.2,2602.6,5.76337]
[1723888258333,2.3478,2603.2,2602.7,6.4316]
[1723888258853,2.3478,2603.2,2602.7,3.55]
[1723888259016,5.96847322,2603.2,2602.6,2.88165]
[1723888259208,5.96846322,2603.2,2602.6,2.88165]
[1723888262365,3.08739322,2603.2,2602.6,2.88165]
[1723888263554,5.96847322,2603.2,2602.6,2.88165]
[1723888263956,1.00553737,2603.1,2602.6,2.88165]
[1723888265167,3.08739322,2603.2,2602.7,4.20754]
[1723888265472,3.08739322,2603.2,2602.8,3.43141]
[1723888265473,2.3478,2603.2,2602.8,3.43141]
[1723888268599,2.3478,2603.2,2602.8,0.55]
[1723888269106,2.3478,2603.2,2602.6,2.88169]
[1723888269107,2.99125805,2603.2,2602.6,4.20769]
[1723888270461,2.99125805,2603.2,2602.6,7.08934]
[1723888271000,2.3478,2603.2,2602.8,2.8815]
[1723888273590,2.3478,2603.2,2602.8,5.76292]
[1723888273806,2.3478,2603.2,2602.8,2.88142]
[1723888274683,9.8918,2603.4,2603.0,2.88128]
[1723888274883,11.45089227,2603.4,2603.0,2.88128]
[1723888275073,2.4618,2603.3,2602.8,2.88142]
[1723888275271,2.4618,2603.3,2602.9,2.88139]
[1723888275590,2.4618,2603.3,2602.9,0.55]
[1723888275789,3.38256014,2603.3,2602.8,2.88142]
[1723888279466,4.58849059,2603.3,2602.8,2.88142]
[1723888280091,3.38256014,2603.3,2602.8,2.88142]
[1723888280473,4.58849059,2603.3,2602.8,2.88142]
[1723888280610,1.64584829,2603.2,2602.8,2.88142]
[1723888282818,1.64584829,2603.2,2602.7,0.55]
[1723888283046,2.85177874,2603.2,2602.7,0.55]
[1723888283249,2.85177874,2603.2,2602.7,3.43162]
[1723888283559,1.64584829,2603.2,2602.7,3.43162]
[1723888284219,4.58849059,2603.3,2602.8,2.8815]
[1723888284427,1.20593045,2603.3,2603.0,2.88128]
[1723888284756,8.63593045,2603.4,2603.0,2.88128]
[1723888284958,2.4618,2603.3,2602.9,0.55]
[1723888285762,5.34282,2603.3,2602.7,5.31239]
[1723888285975,7.07791817,2603.3,2602.8,0.55]
[1723888286267,8.28384862,2603.3,2602.8,0.55]
[1723888287900,5.40282862,2603.3,2602.8,3.4315]
[1723888288377,8.28378862,2603.3,2602.8,3.4315]
[1723888288574,8.28378862,2603.3,2602.7,1.326]
[1723888288575,3.24140221,2603.2,2602.7,1.326]
[1723888288739,2.03547176,2603.2,2602.7,1.326]
[1723888289076,6.54869045,2603.3,2602.7,1.326]
[1723888289942,1.20593045,2603.2,2602.6,5.76329]
[1723888290149,1.20593045,2603.2,2602.7,0.55]
[1723888290534,3.66773045,2603.1,2602.7,0.55]
[1723888290936,2.4618,2603.1,2602.7,0.55]
[1723888291560,3.66773045,2603.1,2602.7,0.55]
[1723888292069,2.4618,2603.1,2602.7,0.55]
[1723888292534,3.66773045,2603.1,2602.7,0.55]
[1723888292962,2.4618,2603.1,2602.7,0.55]
[1723888293677,3.66773045,2603.1,2602.7,0.55]
[1723888294083,2.4618,2603.1,2602.7,0.55]
[1723888294580,3.66773045,2603.1,2602.7,0.55]
[1723888295236,1.20593045,2603.0,2602.7,0.55]
[1723888295574,2.3588,2602.6,2602.0,5.15232]
[1723888295868,3.56739122,2602.6,2602.0,5.15232]
[1723888296471,3.56739122,2602.6,2602.0,8.03461]
[1723888296672,3.56739122,2602.6,2602.0,5.15229]
[1723888296888,3.56739122,2602.6,2602.1,0.55]
[1723888297039,5.24914557,2602.6,2602.1,0.55]
[1723888297761,2.3588,2602.6,2602.1,4.75827]
[1723888297960,4.09022122,2602.7,2602.1,4.75827]
[1723888299274,1.20859122,2602.6,2602.1,4.75827]
[1723888299447,1.20859122,2602.7,2602.1,4.75827]
[1723888299850,1.20859122,2602.7,2602.3,2.88201]
[1723888300067,1.20859122,2602.9,2602.5,3.596]
[1723888300261,1.20859122,2603.1,2602.9,5.1514]
[1723888300687,1.61252229,2603.2,2602.9,5.1514]
[1723888300688,1.20859122,2603.2,2602.9,5.1514]
[1723888301189,2.3588,2603.5,2603.4,2.88084]
[1723888301190,1.20859122,2603.5,2603.4,2.88084]
[1723888301353,1.20859122,2603.5,2603.4,1.326]
[1723888301555,1.20859122,2603.7,2603.2,4.20706]
[1723888301775,1.20859122,2603.7,2603.3,0.55]
[1723888301985,2.72313165,2603.7,2603.3,0.55]
[1723888302377,3.56739122,2603.6,2603.0,4.20724]
[1723888302578,3.56739122,2603.6,2603.1,2.88113]
[1723888302751,2.3588,2603.6,2603.1,2.88113]
[1723888302955,1.20859122,2603.6,2603.1,2.88113]
[1723888303178,2.72313165,2603.7,2603.1,2.88113]
[1723888303989,1.20859122,2603.7,2603.3,2.88092]
[1723888304557,1.20859122,2603.7,2603.4,2.88076]
[1723888304888,1.61252229,2603.8,2603.4,2.88076]
[1723888304889,1.20859122,2603.8,2603.4,2.88076]
[1723888305094,1.20859122,2603.8,2603.4,4.20676]
[1723888305800,1.20859122,2603.8,2603.6,2.8806]
[1723888306092,2.01456747,2604.1,2603.6,3.596]
[1723888306093,1.20859122,2604.0,2603.6,3.596]
[1723888306469,1.61252229,2604.1,2603.6,4.2066]
[1723888306470,1.20859122,2604.1,2603.6,4.2066]
[1723888306702,0.80081791,2604.0,2603.6,4.2066]
[1723888307261,20.94859122,2604.2,2603.6,4.2066]
[1723888307462,20.94859122,2604.2,2603.5,3.43063]
[1723888307463,4.08873122,2604.1,2603.5,0.55]
[1723888307666,4.08873122,2604.1,2603.5,3.43073]
[1723888307876,2.88014,2604.1,2603.5,2.88073]
[1723888308065,6.08073335,2604.1,2603.5,4.20673]
[1723888308865,3.20059335,2604.1,2603.5,4.20673]
[1723888309895,7.43,2604.2,2604.1,2.88007]
[1723888310092,7.43,2604.2,2603.9,1.326]
[1723888310093,1.20859122,2604.4,2604.0,2.88015]
[1723888310281,15.87739122,2604.6,2604.1,2.88007]
[1723888310479,15.87739122,2604.6,2604.2,2.87994]
[1723888310480,2.57239083,2604.5,2604.2,2.87994]
[1723888311179,0.76291492,2604.4,2604.2,2.87994]
[1723888311501,14.6688,2604.6,2604.2,2.87994]
[1723888311677,2.3588,2604.6,2604.2,2.87994]
[1723888312410,2.3588,2604.6,2604.3,2.87984]
[1723888312579,2.3588,2604.6,2604.2,2.87994]
[1723888312966,2.3588,2604.6,2604.3,2.87984]
[1723888313170,2.2667,2604.9,2604.4,2.87973]
[1723888313382,5.13238935,2604.9,2604.4,2.87973]
[1723888314199,5.13238935,2604.9,2604.2,5.75983]
[1723888314370,5.13238935,2604.9,2604.3,2.87978]
[1723888314571,2.2667,2604.9,2604.4,2.87974]
[1723888316299,5.14589,2604.9,2604.2,2.87989]
[1723888316498,5.14589,2604.9,2604.2,2.87986]
[1723888316699,2.2667,2604.9,2604.3,2.87984]
[1723888317812,2.2667,2604.9,2604.4,2.87973]
[1723888318179,2.2667,2604.9,2604.5,2.87962]
[1723888318677,2.2667,2604.9,2604.4,2.87973]
[1723888319185,2.2667,2604.9,2604.4,2.87965]
[1723888323285,3.656878,2604.9,2604.4,2.87965]
[1723888325460,2.2667,2604.9,2604.4,2.87965]
[1723888325932,2.2667,2604.9,2604.4,5.31285]
[1723888326391,10.30908,2605.0,2604.4,5.31285]
[1723888327235,10.30908,2605.0,2604.5,1.326]
[1723888327236,7.43,2605.0,2604.5,1.326]
[1723888327401,2.2667,2605.1,2604.8,2.87927]
[1723888328238,9.6967,2605.3,2604.8,2.87927]
[1723888328443,10.860166,2605.3,2604.8,2.87927]
[1723888332249,3.430166,2605.3,2604.8,2.87927]
[1723888335337,3.430166,2605.3,2604.8,5.24447]
[1723888335641,1.163466,2605.3,2604.8,5.24447]
[1723888338163,0.6406026,2605.2,2604.6,2.87947]
[1723888338932,3.5195426,2605.2,2604.6,2.87947]
[1723888339774,3.5195426,2605.2,2604.6,7.08491]
[1723888340067,2.87894,2605.2,2604.7,2.8794]
[1723888342477,2.87894,2605.2,2604.6,1.326]
[1723888342850,2.87894,2605.2,2604.6,4.2055]
[1723888349448,2.3639,2605.1,2604.6,4.2055]
[1723888350290,3.57249122,2605.1,2604.6,4.2055]
[1723888350460,2.3639,2605.1,2604.6,4.2055]
[1723888352172,2.3639,2605.1,2604.7,2.87939]
[1723888352358,1.20859122,2605.2,2604.9,2.87918]
[1723888352551,1.20859122,2605.2,2604.9,5.21058]
[1723888352746,1.20859122,2605.3,2604.9,5.21058]
[1723888354141,1.20859122,2605.2,2604.9,5.21058]
[1723888354389,1.20859122,2605.2,2604.9,8.08961]
[1723888354594,1.20859122,2605.2,2604.9,5.2105]
[1723888355281,1.20859122,2605.1,2604.9,2.8791]
[1723888355687,1.20859122,2605.0,2604.9,2.8791]
[1723888355858,1.20859122,2605.1,2604.9,2.8791]
[1723888362203,1.20859122,2605.2,2605.1,2.87896]
[1723888362419,1.20859122,2605.5,2605.3,2.87874]
[1723888362561,1.20859122,2605.5,2605.4,2.87863]
[1723888362974,1.20859122,2605.6,2605.4,2.87863]
[1723888363194,1.20859122,2605.6,2605.5,2.87852]
[1723888363397,1.20859122,2605.7,2605.4,4.20463]
[1723888363606,1.20859122,2605.6,2605.4,4.20463]
[1723888363981,1.20859122,2605.6,2605.4,2.87863]
[1723888364634,1.20859122,2605.7,2605.4,2.87863]
[1723888367250,1.20859122,2605.8,2605.4,2.87863]
[1723888368704,1.20859122,2605.7,2605.4,2.87863]
[1723888369702,1.20859122,2605.8,2605.4,2.87863]
[1723888372257,1.20859122,2605.8,2605.5,2.87851]
[1723888372403,1.20859122,2605.8,2605.5,5.36591]
[1723888373454,1.20859122,2605.8,2605.5,2.4874]
[1723888373749,1.20859122,2605.7,2605.5,2.4874]
[1723888374682,1.20859122,2605.8,2605.5,2.4874]
[1723888376646,1.20859122,2605.7,2605.5,2.4874]
[1723888377652,1.20859122,2605.8,2605.5,2.4874]
[1723888377857,2.60179143,2605.8,2605.4,2.87863]
[1723888379281,1.20859122,2605.7,2605.3,2.4874]
[1723888379490,1.326,2605.5,2604.8,5.36662]
[1723888379699,1.326,2605.5,2604.2,1.20567213]
[1723888379700,1.20859122,2605.3,2604.6,3.8134]
[1723888379985,1.20859122,2605.2,2604.6,3.8134]
[1723888380184,1.20859122,2605.2,2604.6,5.36681]
[1723888380342,1.20859122,2605.1,2604.6,5.36681]
[1723888380990,4.67295749,2605.2,2604.6,5.36681]
[1723888381194,1.79409749,2605.2,2604.6,5.36681]
[1723888381399,1.79409749,2605.2,2604.6,8.24626]